[Event "*** MasterClass Titled Tuesday Blitz"]
[Site "Chess.com"]
[Date "2017.11.07"]
[Round "4"]
[White "Angry_Serb"]
[Black "ValeriyGrinev"]
[Result "1-0"]
[WhiteElo "2434"]
[BlackElo "2431"]
[TimeControl "180+2"]
[EndTime "14:59:41 PST"]
[Termination "Angry_Serb won by resignation"]

1. e4 {[%clk 0:03:01.3]} 1... c5 {[%clk 0:03:00.3]} 2. Nf3 {[%clk 0:02:52.9]}
2... e6 {[%clk 0:03:01.2]} 3. d4 {[%clk 0:02:41.7]} 3... cxd4 {[%clk 0:03:03.1]}
4. Nxd4 {[%clk 0:02:43.6]} 4... a6 {[%clk 0:03:04.6]} 5. Bd3 {[%clk 0:02:44.9]}
5... Bc5 {[%clk 0:03:04.4]} 6. Nb3 {[%clk 0:02:45.5]} 6... Be7 {[%clk 0:03:06]}
7. Be3 {[%clk 0:02:40]} 7... d6 {[%clk 0:03:05.8]} 8. f4 {[%clk 0:02:40.8]} 8...
Nf6 {[%clk 0:03:06.6]} 9. N1d2 {[%clk 0:02:41.6]} 9... Nbd7 {[%clk 0:03:07.4]}
10. Qf3 {[%clk 0:02:42.3]} 10... Qc7 {[%clk 0:03:07.8]} 11. g4 {[%clk
0:02:43.3]} 11... h6 {[%clk 0:03:05.5]} 12. O-O-O {[%clk 0:02:39.6]} 12... b5
{[%clk 0:03:05.6]} 13. h4 {[%clk 0:02:33.8]} 13... h5 {[%clk 0:03:06.2]} 14. g5
{[%clk 0:02:34.8]} 14... Ng4 {[%clk 0:03:07.6]} 15. Bg1 {[%clk 0:02:34.9]} 15...
Bb7 {[%clk 0:03:07.7]} 16. Kb1 {[%clk 0:02:24.5]} 16... Bc6 {[%clk 0:02:38.5]}
17. Nd4 {[%clk 0:02:24.8]} 17... Nc5 {[%clk 0:02:36.7]} 18. Nxc6 {[%clk
0:02:03.6]} 18... Qxc6 {[%clk 0:02:38.6]} 19. Nb3 {[%clk 0:01:58.1]} 19... Nxd3
{[%clk 0:02:38.8]} 20. cxd3 {[%clk 0:01:58.3]} 20... a5 {[%clk 0:02:36]} 21. Nd4
{[%clk 0:01:57.8]} 21... Qb7 {[%clk 0:02:36.9]} 22. g6 {[%clk 0:01:58.4]} 22...
Bf6 {[%clk 0:02:31.7]} 23. gxf7+ {[%clk 0:01:59]} 23... Kxf7 {[%clk 0:02:33.6]}
24. f5 {[%clk 0:01:52.1]} 24... Bxd4 {[%clk 0:02:32.5]} 25. fxe6+ {[%clk
0:01:52.8]} 25... Kxe6 {[%clk 0:02:33.6]} 26. Qf5+ {[%clk 0:01:51.5]} 26... Ke7
{[%clk 0:02:34.2]} 27. Bxd4 {[%clk 0:01:52.8]} 27... Raf8 {[%clk 0:02:15.7]} 28.
Qg5+ {[%clk 0:01:52]} 28... Ke8 {[%clk 0:02:17.1]} 29. Qg6+ {[%clk 0:01:46]}
29... Rf7 {[%clk 0:02:15.7]} 30. Qxd6 {[%clk 0:01:44.7]} 30... Rh6 {[%clk
0:02:15.9]} 31. Qc5 {[%clk 0:01:40]} 31... Qc6 {[%clk 0:02:13.3]} 32. Qg5 {[%clk
0:01:30.3]} 32... a4 {[%clk 0:01:47]} 33. Rc1 {[%clk 0:01:31.1]} 33... Qd7
{[%clk 0:01:48.1]} 34. Rc5 {[%clk 0:01:12.9]} 34... Rd6 {[%clk 0:01:41.9]} 35.
Rhc1 {[%clk 0:01:05.5]} 35... Rxd4 {[%clk 0:01:38.2]} 36. Rc8+ {[%clk
0:01:06.4]} 36... Qd8 {[%clk 0:01:39.3]} 37. Qxb5+ {[%clk 0:01:07]} 37... Rfd7
{[%clk 0:01:36.4]} 38. Qxh5+ {[%clk 0:01:01.9]} 38... Ke7 {[%clk 0:01:29.6]} 39.
Rxd8 {[%clk 0:01:02.6]} 39... Nf6 {[%clk 0:01:31]} 40. Rxd7+ {[%clk 0:01:01.9]}
1-0

[Event "*** MasterClass Titled Tuesday Blitz"]
[Site "Chess.com"]
[Date "2017.11.07"]
[Round "4"]
[White "Jadeit90"]
[Black "Grebeniuk-S"]
[Result "1-0"]
[WhiteElo "2310"]
[BlackElo "2430"]
[TimeControl "180+2"]
[EndTime "14:59:51 PST"]
[Termination "Jadeit90 won by resignation"]

1. g3 {[%clk 0:03:01.9]} 1... f5 {[%clk 0:03:00.7]} 2. Bg2 {[%clk 0:02:59.1]}
2... Nf6 {[%clk 0:03:02.3]} 3. Nf3 {[%clk 0:03:01]} 3... g6 {[%clk 0:03:03.8]}
4. O-O {[%clk 0:03:02.8]} 4... Bg7 {[%clk 0:03:05.7]} 5. c4 {[%clk 0:03:04.5]}
5... O-O {[%clk 0:03:07.6]} 6. Nc3 {[%clk 0:03:06.3]} 6... d6 {[%clk 0:03:09.1]}
7. d3 {[%clk 0:03:07.8]} 7... Nc6 {[%clk 0:03:08.1]} 8. Rb1 {[%clk 0:03:04.9]}
8... a5 {[%clk 0:03:08.9]} 9. a3 {[%clk 0:03:05.6]} 9... Nh5 {[%clk 0:03:08]}
10. Bd2 {[%clk 0:03:05.9]} 10... f4 {[%clk 0:03:06.8]} 11. b4 {[%clk 0:03:06.9]}
11... axb4 {[%clk 0:03:07.5]} 12. axb4 {[%clk 0:03:08.8]} 12... Bg4 {[%clk
0:03:08.3]} 13. b5 {[%clk 0:03:09.7]} 13... Nd4 {[%clk 0:03:08.9]} 14. Nxd4
{[%clk 0:03:07.8]} 14... Bxd4 {[%clk 0:03:10.8]} 15. h3 {[%clk 0:03:00.4]} 15...
fxg3 {[%clk 0:02:39.2]} 16. hxg4 {[%clk 0:03:00.2]} 16... Bxf2+ {[%clk 0:02:36]}
17. Rxf2 {[%clk 0:02:59.1]} 17... gxf2+ {[%clk 0:02:35.2]} 18. Kh2 {[%clk
0:02:58.9]} 18... Nf4 {[%clk 0:02:09.3]} 19. Bf3 {[%clk 0:02:35.4]} 19... e6
{[%clk 0:02:05.4]} 20. Kg3 {[%clk 0:02:35.1]} 20... Qg5 {[%clk 0:01:44.7]} 21.
Ne4 {[%clk 0:02:25.9]} 21... Qe5 {[%clk 0:01:41.8]} 22. Bxf4 {[%clk 0:02:15.5]}
22... Qxf4+ {[%clk 0:01:27.3]} 23. Kxf2 {[%clk 0:02:16.8]} 23... Qxg4 {[%clk
0:01:17.9]} 24. Qh1 {[%clk 0:02:17.9]} 24... Ra2 {[%clk 0:01:15.7]} 25. Rg1
{[%clk 0:02:17.9]} 25... Qf4 {[%clk 0:00:50.7]} 26. Qh3 {[%clk 0:02:16.6]} 26...
Qe5 {[%clk 0:00:38.7]} 27. Rg5 {[%clk 0:02:06.7]} 27... Qd4+ {[%clk 0:00:38.4]}
28. Kg2 {[%clk 0:02:06.2]} 28... Rf5 {[%clk 0:00:35.4]} 29. Rxf5 {[%clk
0:02:03.1]} 29... exf5 {[%clk 0:00:37.3]} 30. Ng5 {[%clk 0:01:56.1]} 30... h5
{[%clk 0:00:36.7]} 31. Ne6 {[%clk 0:01:44.1]} 31... Qe3 {[%clk 0:00:27]} 32.
Nxc7 {[%clk 0:01:39.5]} 32... Ra1 {[%clk 0:00:19.3]} 33. Qh2 {[%clk 0:01:35.3]}
33... g5 {[%clk 0:00:15.9]} 34. Nd5 {[%clk 0:01:31.6]} 34... g4 {[%clk
0:00:15.1]} 35. Nxe3 {[%clk 0:01:31.6]} 1-0

[Event "*** MasterClass Titled Tuesday Blitz"]
[Site "Chess.com"]
[Date "2017.11.07"]
[Round "4"]
[White "maciek_92"]
[Black "chessking2151"]
[Result "1-0"]
[WhiteElo "2555"]
[BlackElo "2398"]
[TimeControl "180+2"]
[EndTime "14:59:54 PST"]
[Termination "maciek_92 won by checkmate"]

1. c4 {[%clk 0:02:56.8]} 1... Nf6 {[%clk 0:03:00.4]} 2. Nc3 {[%clk 0:02:56.6]}
2... e6 {[%clk 0:03:01.1]} 3. Nf3 {[%clk 0:02:56.6]} 3... Bb4 {[%clk 0:02:39.8]}
4. Qb3 {[%clk 0:02:56.5]} 4... Nc6 {[%clk 0:02:36.1]} 5. a3 {[%clk 0:02:44.9]}
5... Be7 {[%clk 0:02:30.1]} 6. d4 {[%clk 0:02:43.5]} 6... d6 {[%clk 0:02:26.8]}
7. Bf4 {[%clk 0:02:39.1]} 7... O-O {[%clk 0:02:24]} 8. e3 {[%clk 0:02:40.1]}
8... Nh5 {[%clk 0:02:04.4]} 9. Bg3 {[%clk 0:02:30.4]} 9... f5 {[%clk 0:01:58.9]}
10. Bd3 {[%clk 0:02:12]} 10... b6 {[%clk 0:01:36.8]} 11. Qc2 {[%clk 0:02:08.9]}
11... Bb7 {[%clk 0:01:29.4]} 12. d5 {[%clk 0:02:08]} 12... Nb8 {[%clk
0:01:21.2]} 13. dxe6 {[%clk 0:02:06.4]} 13... Bxf3 {[%clk 0:01:19.4]} 14. gxf3
{[%clk 0:02:07]} 14... g6 {[%clk 0:01:20.8]} 15. O-O-O {[%clk 0:02:05.2]} 15...
c6 {[%clk 0:01:16.5]} 16. Kb1 {[%clk 0:02:02.3]} 16... Qc8 {[%clk 0:01:16.8]}
17. Bf4 {[%clk 0:01:48.6]} 17... Qxe6 {[%clk 0:00:51.7]} 18. Bh6 {[%clk
0:01:47.2]} 18... Rd8 {[%clk 0:00:50.1]} 19. Rhg1 {[%clk 0:01:46.7]} 19... Kh8
{[%clk 0:00:45.8]} 20. Ne2 {[%clk 0:01:41.9]} 20... Bf8 {[%clk 0:00:42.9]} 21.
Bg5 {[%clk 0:01:36.7]} 21... Re8 {[%clk 0:00:37.6]} 22. Nd4 {[%clk 0:01:35]}
22... Qf7 {[%clk 0:00:31.5]} 23. Bxf5 {[%clk 0:01:20.9]} 23... c5 {[%clk
0:00:21.7]} 24. Be4 {[%clk 0:01:17.5]} 24... cxd4 {[%clk 0:00:17.7]} 25. Bxa8
{[%clk 0:01:16.9]} 25... dxe3 {[%clk 0:00:18.7]} 26. Bd5 {[%clk 0:01:16.6]}
26... Qg7 {[%clk 0:00:18.6]} 27. fxe3 {[%clk 0:01:17.7]} 27... Nd7 {[%clk
0:00:19]} 28. f4 {[%clk 0:01:15.9]} 28... Ndf6 {[%clk 0:00:18.4]} 29. e4 {[%clk
0:01:14.9]} 29... h6 {[%clk 0:00:17.5]} 30. Bxf6 {[%clk 0:01:10.5]} 30... Qxf6
{[%clk 0:00:19.4]} 31. e5 {[%clk 0:01:12]} 31... dxe5 {[%clk 0:00:20.6]} 32.
Rxg6 {[%clk 0:01:12.2]} 32... Qxf4 {[%clk 0:00:19.7]} 33. Rg8# {[%clk
0:01:13.7]} 1-0

[Event "*** MasterClass Titled Tuesday Blitz"]
[Site "Chess.com"]
[Date "2017.11.07"]
[Round "4"]
[White "LuisFSiles"]
[Black "AbdAlAgathos"]
[Result "0-1"]
[WhiteElo "2177"]
[BlackElo "2229"]
[TimeControl "180+2"]
[EndTime "14:59:58 PST"]
[Termination "AbdAlAgathos won by resignation"]

1. e4 {[%clk 0:03:01.9]} 1... e6 {[%clk 0:03:00]} 2. d4 {[%clk 0:03:02.4]} 2...
d5 {[%clk 0:03:01.2]} 3. Nc3 {[%clk 0:03:03.3]} 3... Bb4 {[%clk 0:03:01.7]} 4.
Ne2 {[%clk 0:03:03.8]} 4... dxe4 {[%clk 0:02:58.5]} 5. a3 {[%clk 0:03:04.9]}
5... Bxc3+ {[%clk 0:02:59]} 6. Nxc3 {[%clk 0:03:06.8]} 6... Nc6 {[%clk
0:02:59.7]} 7. Bb5 {[%clk 0:03:05]} 7... Ne7 {[%clk 0:02:59.5]} 8. Nxe4 {[%clk
0:02:58.7]} 8... Qd5 {[%clk 0:02:59.3]} 9. Qd3 {[%clk 0:02:47.3]} 9... O-O
{[%clk 0:02:39.9]} 10. Be3 {[%clk 0:02:42.6]} 10... f5 {[%clk 0:02:38]} 11. Nc3
{[%clk 0:02:42.1]} 11... Qxg2 {[%clk 0:02:38]} 12. O-O-O {[%clk 0:02:40.5]}
12... f4 {[%clk 0:02:07.3]} 13. Bd2 {[%clk 0:02:32.9]} 13... Qg6 {[%clk
0:01:42.9]} 14. Ne4 {[%clk 0:02:28.2]} 14... Qf5 {[%clk 0:01:39.1]} 15. Rhg1
{[%clk 0:02:19.7]} 15... h6 {[%clk 0:01:16]} 16. f3 {[%clk 0:02:05.8]} 16... Bd7
{[%clk 0:01:00.4]} 17. Rg4 {[%clk 0:01:59.9]} 17... g6 {[%clk 0:00:28.4]} 18.
Bxf4 {[%clk 0:01:52.3]} 18... h5 {[%clk 0:00:22.2]} 19. Bxc6 {[%clk 0:01:04.4]}
19... Bxc6 {[%clk 0:00:20.8]} 20. Bg5 {[%clk 0:00:55.8]} 20... hxg4 {[%clk
0:00:19.7]} 21. Bxe7 {[%clk 0:00:57]} 21... gxf3 {[%clk 0:00:20.1]} 22. Bxf8
{[%clk 0:00:57.4]} 22... Bxe4 {[%clk 0:00:21]} 23. Qc4 {[%clk 0:00:49.2]} 23...
Rxf8 {[%clk 0:00:21.5]} 24. Qxc7 {[%clk 0:00:50.3]} 24... f2 {[%clk 0:00:22.4]}
25. Rf1 {[%clk 0:00:51.4]} 25... Bg2 {[%clk 0:00:23]} 26. Qc4 {[%clk 0:00:52.1]}
26... Bxf1 {[%clk 0:00:23.9]} 27. Qxf1 {[%clk 0:00:54]} 27... Qf4+ {[%clk
0:00:25.3]} 28. Kb1 {[%clk 0:00:54.3]} 28... Qe3 {[%clk 0:00:26.4]} 29. Ka2
{[%clk 0:00:54.9]} 29... Qe1 {[%clk 0:00:27.3]} 30. Qg2 {[%clk 0:00:56.5]} 30...
Kg7 {[%clk 0:00:28.1]} 31. Qxb7+ {[%clk 0:00:56.5]} 31... Rf7 {[%clk 0:00:29.5]}
0-1

[Event "*** MasterClass Titled Tuesday Blitz"]
[Site "Chess.com"]
[Date "2017.11.07"]
[Round "4"]
[White "chidori_boruto"]
[Black "pastouche06"]
[Result "1-0"]
[WhiteElo "2537"]
[BlackElo "2337"]
[TimeControl "180+2"]
[EndTime "14:59:59 PST"]
[Termination "chidori_boruto won on time"]

1. d4 {[%clk 0:03:00.9]} 1... Nf6 {[%clk 0:03:00.5]} 2. Nf3 {[%clk 0:02:53]}
2... g6 {[%clk 0:03:01.3]} 3. Bf4 {[%clk 0:02:53.3]} 3... Bg7 {[%clk 0:03:02.1]}
4. e3 {[%clk 0:02:54.5]} 4... d6 {[%clk 0:03:02.5]} 5. Be2 {[%clk 0:02:55.5]}
5... O-O {[%clk 0:02:58.6]} 6. O-O {[%clk 0:02:56.4]} 6... Nbd7 {[%clk
0:02:47.9]} 7. h3 {[%clk 0:02:56.4]} 7... b6 {[%clk 0:02:42]} 8. c4 {[%clk
0:02:56.8]} 8... Qe8 {[%clk 0:02:18.4]} 9. Bh2 {[%clk 0:02:57.3]} 9... Bb7
{[%clk 0:02:10.5]} 10. Nc3 {[%clk 0:02:57.9]} 10... e6 {[%clk 0:02:01]} 11. Rc1
{[%clk 0:02:58.3]} 11... a6 {[%clk 0:01:52.7]} 12. b4 {[%clk 0:02:58.7]} 12...
Ne4 {[%clk 0:01:44.9]} 13. Nxe4 {[%clk 0:02:58.1]} 13... Bxe4 {[%clk 0:01:45.7]}
14. Nd2 {[%clk 0:02:59.7]} 14... Bb7 {[%clk 0:01:44.9]} 15. Bf3 {[%clk
0:03:01.2]} 15... Bxf3 {[%clk 0:01:42.4]} 16. Qxf3 {[%clk 0:03:03.1]} 16... f5
{[%clk 0:01:35.8]} 17. Qc6 {[%clk 0:03:02.5]} 17... Qc8 {[%clk 0:00:49.6]} 18.
c5 {[%clk 0:02:59.7]} 18... bxc5 {[%clk 0:00:39.2]} 19. bxc5 {[%clk 0:02:59.4]}
19... dxc5 {[%clk 0:00:37.9]} 20. Qxe6+ {[%clk 0:02:59.3]} 20... Kh8 {[%clk
0:00:39.2]} 21. dxc5 {[%clk 0:03:00]} 21... Rf6 {[%clk 0:00:25.9]} 22. Qc4
{[%clk 0:02:57]} 22... Rc6 {[%clk 0:00:23.7]} 23. Qd5 {[%clk 0:02:55.3]} 23...
Rf6 {[%clk 0:00:15.1]} 24. Nf3 {[%clk 0:02:53.2]} 24... Rb8 {[%clk 0:00:13.8]}
25. Rfd1 {[%clk 0:02:53.4]} 25... Nf8 {[%clk 0:00:09.1]} 26. Be5 {[%clk
0:02:48.8]} 26... Re6 {[%clk 0:00:04.7]} 27. Bf4 {[%clk 0:02:44.5]} 27... Qe8
{[%clk 0:00:04]} 28. Bxc7 {[%clk 0:02:43.5]} 28... Rc8 {[%clk 0:00:04.6]} 29.
Bg3 {[%clk 0:02:39.6]} 29... h6 {[%clk 0:00:05.2]} 30. Nd4 {[%clk 0:02:36.3]}
30... Re7 {[%clk 0:00:03.2]} 31. Bd6 {[%clk 0:02:37]} 31... Rd7 {[%clk
0:00:04.4]} 32. c6 {[%clk 0:02:28.1]} 32... Rf7 {[%clk 0:00:05.4]} 33. Bxf8
{[%clk 0:02:23.6]} 33... Qxf8 {[%clk 0:00:06.1]} 34. Ne6 {[%clk 0:02:24.4]}
34... Qe8 {[%clk 0:00:06.8]} 35. Nxg7 {[%clk 0:02:24.6]} 35... Rxg7 {[%clk
0:00:08.1]} 36. Rc5 {[%clk 0:02:19.7]} 36... Rgc7 {[%clk 0:00:07.7]} 37. Rdc1
{[%clk 0:02:17.4]} 37... Qe4 {[%clk 0:00:04.3]} 38. Qxe4 {[%clk 0:02:17.8]}
38... fxe4 {[%clk 0:00:05.6]} 39. Kf1 {[%clk 0:02:16.9]} 39... Kg7 {[%clk
0:00:06.9]} 40. Ke2 {[%clk 0:02:17.1]} 40... Kf6 {[%clk 0:00:08.1]} 41. R1c4
{[%clk 0:02:18]} 41... Re8 {[%clk 0:00:03.7]} 42. Ra4 {[%clk 0:02:14.3]} 1-0

[Event "*** MasterClass Titled Tuesday Blitz"]
[Site "Chess.com"]
[Date "2017.11.07"]
[Round "4"]
[White "fidetrainerNET"]
[Black "pedromartinez91"]
[Result "0-1"]
[WhiteElo "2018"]
[BlackElo "2323"]
[TimeControl "180+2"]
[EndTime "15:00:17 PST"]
[Termination "pedromartinez91 won by checkmate"]

1. d4 {[%clk 0:01:41.6]} 1... Nf6 {[%clk 0:02:53.7]} 2. Nf3 {[%clk 0:01:43.5]}
2... g6 {[%clk 0:02:53.7]} 3. c4 {[%clk 0:01:43]} 3... Bg7 {[%clk 0:02:54]} 4.
Nc3 {[%clk 0:01:44.9]} 4... d5 {[%clk 0:02:54.3]} 5. Qb3 {[%clk 0:01:41.9]} 5...
dxc4 {[%clk 0:02:53.8]} 6. Qxc4 {[%clk 0:01:43.8]} 6... O-O {[%clk 0:02:54.6]}
7. e4 {[%clk 0:01:45.1]} 7... Bg4 {[%clk 0:02:46.5]} 8. Bf4 {[%clk 0:01:45.3]}
8... c6 {[%clk 0:02:44.6]} 9. Be2 {[%clk 0:01:44.6]} 9... Nbd7 {[%clk
0:02:32.8]} 10. O-O {[%clk 0:01:44.2]} 10... Nb6 {[%clk 0:02:29.9]} 11. Qd3
{[%clk 0:01:44.1]} 11... Bxf3 {[%clk 0:02:24.8]} 12. Bxf3 {[%clk 0:01:43.8]}
12... Nfd7 {[%clk 0:02:13.2]} 13. Rad1 {[%clk 0:01:41.8]} 13... e5 {[%clk
0:02:11.1]} 14. dxe5 {[%clk 0:01:38.5]} 14... Nxe5 {[%clk 0:02:11.7]} 15. Qe2
{[%clk 0:01:38.9]} 15... Qe7 {[%clk 0:02:09.1]} 16. Be3 {[%clk 0:01:38.6]} 16...
Nbc4 {[%clk 0:02:06.8]} 17. Kh1 {[%clk 0:01:29.7]} 17... Nxe3 {[%clk 0:02:06.3]}
18. Qxe3 {[%clk 0:01:29.9]} 18... Nxf3 {[%clk 0:02:02.3]} 19. gxf3 {[%clk
0:01:29.2]} 19... Rfd8 {[%clk 0:02:02.8]} 20. Rxd8+ {[%clk 0:01:28.6]} 20...
Rxd8 {[%clk 0:02:02.7]} 21. Rd1 {[%clk 0:01:29.9]} 21... Rxd1+ {[%clk
0:02:02.9]} 22. Nxd1 {[%clk 0:01:29.8]} 22... Qh4 {[%clk 0:01:59]} 23. Qxa7
{[%clk 0:01:29.9]} 23... Be5 {[%clk 0:01:59.2]} 24. Kg2 {[%clk 0:01:28.7]} 24...
Qxh2+ {[%clk 0:01:57.6]} 25. Kf1 {[%clk 0:01:29.6]} 25... Qh3+ {[%clk
0:01:56.2]} 26. Ke2 {[%clk 0:01:30.3]} 26... Qd7 {[%clk 0:01:56.6]} 27. Qb6
{[%clk 0:01:22.2]} 27... h5 {[%clk 0:01:56.9]} 28. Ne3 {[%clk 0:01:18.2]} 28...
Kg7 {[%clk 0:01:55.4]} 29. Nc4 {[%clk 0:01:18.1]} 29... Bd4 {[%clk 0:01:55.2]}
30. Qb4 {[%clk 0:01:14.7]} 30... h4 {[%clk 0:01:54.8]} 31. Qe1 {[%clk
0:01:12.1]} 31... b5 {[%clk 0:01:54.2]} 32. Ne3 {[%clk 0:01:11.3]} 32... Bxb2
{[%clk 0:01:54.4]} 33. Qh1 {[%clk 0:01:09.4]} 33... Bf6 {[%clk 0:01:43.2]} 34.
f4 {[%clk 0:01:02.8]} 34... Qe6 {[%clk 0:01:35]} 35. e5 {[%clk 0:01:04]} 35...
Qxa2+ {[%clk 0:01:32.2]} 36. Kf3 {[%clk 0:01:04.4]} 36... Be7 {[%clk 0:01:32.1]}
37. f5 {[%clk 0:01:03.6]} 37... Bg5 {[%clk 0:01:30.1]} 38. f6+ {[%clk
0:01:03.2]} 38... Kg8 {[%clk 0:01:29.1]} 39. Kg4 {[%clk 0:01:02.2]} 39... Bxe3
{[%clk 0:01:25.9]} 40. Qxc6 {[%clk 0:00:58.2]} 40... Qe6+ {[%clk 0:01:26]} 41.
Qxe6 {[%clk 0:00:57.4]} 41... fxe6 {[%clk 0:01:26.7]} 42. fxe3 {[%clk
0:00:57.6]} 42... b4 {[%clk 0:01:26.4]} 43. Kg5 {[%clk 0:00:56.2]} 43... Kf7
{[%clk 0:01:27]} 44. Kh6 {[%clk 0:00:57]} 44... h3 {[%clk 0:01:26.6]} 45. Kh7
{[%clk 0:00:58.9]} 45... h2 {[%clk 0:01:27.3]} 46. Kh8 {[%clk 0:01:00.8]} 46...
h1=Q# {[%clk 0:01:27.1]} 0-1

[Event "*** MasterClass Titled Tuesday Blitz"]
[Site "Chess.com"]
[Date "2017.11.07"]
[Round "4"]
[White "Sam_ChessMood"]
[Black "Cherone"]
[Result "1-0"]
[WhiteElo "2635"]
[BlackElo "2458"]
[TimeControl "180+2"]
[EndTime "15:00:28 PST"]
[Termination "Sam_ChessMood won by resignation"]

1. e4 {[%clk 0:03:01.9]} 1... c5 {[%clk 0:03:00]} 2. Nf3 {[%clk 0:03:02.8]} 2...
e6 {[%clk 0:03:01.1]} 3. d4 {[%clk 0:03:02.9]} 3... cxd4 {[%clk 0:03:00.6]} 4.
Nxd4 {[%clk 0:03:04.5]} 4... a6 {[%clk 0:02:59.8]} 5. Bd3 {[%clk 0:02:59.8]}
5... Bc5 {[%clk 0:03:00.4]} 6. Nb3 {[%clk 0:03:00.3]} 6... Be7 {[%clk
0:03:01.5]} 7. Qg4 {[%clk 0:03:00.2]} 7... g6 {[%clk 0:03:02.4]} 8. Qe2 {[%clk
0:03:01.2]} 8... d6 {[%clk 0:03:03.1]} 9. c4 {[%clk 0:02:44.1]} 9... Nd7 {[%clk
0:03:01.9]} 10. O-O {[%clk 0:02:44.3]} 10... Qc7 {[%clk 0:03:02.3]} 11. Nc3
{[%clk 0:02:43.7]} 11... b6 {[%clk 0:03:03.2]} 12. a4 {[%clk 0:02:41.5]} 12...
Nc5 {[%clk 0:02:14.2]} 13. Nxc5 {[%clk 0:02:41.9]} 13... bxc5 {[%clk 0:02:14]}
14. a5 {[%clk 0:02:28.9]} 14... Bd7 {[%clk 0:02:11.3]} 15. Bf4 {[%clk
0:02:07.8]} 15... Bf6 {[%clk 0:02:04.7]} 16. Qf3 {[%clk 0:01:25.2]} 16... Bxc3
{[%clk 0:01:31.7]} 17. bxc3 {[%clk 0:01:25.6]} 17... e5 {[%clk 0:01:32]} 18. Bg5
{[%clk 0:01:18.4]} 18... h6 {[%clk 0:01:18.6]} 19. Be3 {[%clk 0:01:16.6]} 19...
g5 {[%clk 0:01:05.6]} 20. Rfb1 {[%clk 0:01:09.3]} 20... Ke7 {[%clk 0:00:48.9]}
21. Rb6 {[%clk 0:01:00.8]} 21... Nf6 {[%clk 0:00:47.1]} 22. Rab1 {[%clk
0:00:57.3]} 22... Rhb8 {[%clk 0:00:44.5]} 23. h4 {[%clk 0:00:31.2]} 23... g4
{[%clk 0:00:45.4]} 24. Qd1 {[%clk 0:00:27.1]} 24... h5 {[%clk 0:00:46.6]} 25.
Bg5 {[%clk 0:00:27.7]} 25... Rxb6 {[%clk 0:00:42.7]} 26. axb6 {[%clk 0:00:24.1]}
26... Qc6 {[%clk 0:00:43.9]} 27. Qd2 {[%clk 0:00:20.5]} 27... Rg8 {[%clk
0:00:34.6]} 28. b7 {[%clk 0:00:21]} 28... Qc7 {[%clk 0:00:32.6]} 29. Bxf6+
{[%clk 0:00:21.8]} 29... Kxf6 {[%clk 0:00:33.7]} 30. Qg5+ {[%clk 0:00:22.1]}
30... Rxg5 {[%clk 0:00:34.4]} 31. hxg5+ {[%clk 0:00:23.4]} 31... Kxg5 {[%clk
0:00:35.6]} 32. b8=Q {[%clk 0:00:24.1]} 1-0

[Event "*** MasterClass Titled Tuesday Blitz"]
[Site "Chess.com"]
[Date "2017.11.07"]
[Round "4"]
[White "FairChess_on_YouTube"]
[Black "LaStreetCmaMaison"]
[Result "1-0"]
[WhiteElo "2780"]
[BlackElo "2595"]
[TimeControl "180+2"]
[EndTime "15:00:36 PST"]
[Termination "FairChess_on_YouTube won by checkmate"]

1. e4 {[%clk 0:03:00.7]} 1... e6 {[%clk 0:03:01.2]} 2. d4 {[%clk 0:02:54.1]}
2... d5 {[%clk 0:03:01.3]} 3. exd5 {[%clk 0:02:55.9]} 3... exd5 {[%clk
0:03:01.9]} 4. Nf3 {[%clk 0:02:56.7]} 4... Nf6 {[%clk 0:03:01.1]} 5. Bd3 {[%clk
0:02:56.5]} 5... Bd6 {[%clk 0:03:02.2]} 6. Qe2+ {[%clk 0:02:57]} 6... Qe7 {[%clk
0:02:59]} 7. Qxe7+ {[%clk 0:02:56.9]} 7... Bxe7 {[%clk 0:03:00.3]} 8. Bf4 {[%clk
0:02:57.1]} 8... c6 {[%clk 0:02:56.7]} 9. O-O {[%clk 0:02:57.4]} 9... h6 {[%clk
0:02:44.6]} 10. Re1 {[%clk 0:02:56.4]} 10... Be6 {[%clk 0:02:46]} 11. Nbd2
{[%clk 0:02:56.9]} 11... Nbd7 {[%clk 0:02:42.6]} 12. Nb3 {[%clk 0:02:57.5]}
12... a5 {[%clk 0:02:32.3]} 13. a4 {[%clk 0:02:52.5]} 13... g5 {[%clk
0:02:22.7]} 14. Bg3 {[%clk 0:02:36.4]} 14... Kd8 {[%clk 0:01:56]} 15. Ne5 {[%clk
0:02:18.1]} 15... Nh5 {[%clk 0:01:36.3]} 16. Ng6 {[%clk 0:02:11.9]} 16... Re8
{[%clk 0:00:41.2]} 17. Nxe7 {[%clk 0:02:11.1]} 17... Kxe7 {[%clk 0:00:42.4]} 18.
Bc7 {[%clk 0:02:10.3]} 18... b6 {[%clk 0:00:41.9]} 19. h3 {[%clk 0:02:01.6]}
19... Nf4 {[%clk 0:00:39]} 20. Bxf4 {[%clk 0:01:51.2]} 20... gxf4 {[%clk
0:00:40.9]} 21. Kh2 {[%clk 0:01:52.1]} 21... c5 {[%clk 0:00:33.2]} 22. Bb5
{[%clk 0:01:41.1]} 22... Kd6 {[%clk 0:00:29.4]} 23. Nd2 {[%clk 0:01:32]} 23...
Rg8 {[%clk 0:00:29.4]} 24. Rad1 {[%clk 0:01:29.4]} 24... c4 {[%clk 0:00:23.1]}
25. Nf3 {[%clk 0:01:18.3]} 25... Rg7 {[%clk 0:00:21.4]} 26. Nh4 {[%clk
0:01:15.6]} 26... Rag8 {[%clk 0:00:19.8]} 27. Bxd7 {[%clk 0:01:10.9]} 27... Bxd7
{[%clk 0:00:21.7]} 28. Re5 {[%clk 0:01:11.4]} 28... Rg5 {[%clk 0:00:19.8]} 29.
Rde1 {[%clk 0:01:11.3]} 29... f6 {[%clk 0:00:14.3]} 30. Re7 {[%clk 0:01:07.4]}
30... f3 {[%clk 0:00:15.2]} 31. g4 {[%clk 0:00:54.3]} 31... h5 {[%clk
0:00:14.2]} 32. Nxf3 {[%clk 0:00:55.1]} 32... R5g6 {[%clk 0:00:09.7]} 33. Nh4
{[%clk 0:00:48.9]} 33... Rh6 {[%clk 0:00:07]} 34. Nf5+ {[%clk 0:00:49.4]} 34...
Bxf5 {[%clk 0:00:07.7]} 35. gxf5 {[%clk 0:00:51.3]} 35... Re8 {[%clk 0:00:06.9]}
36. R1e6# {[%clk 0:00:51.4]} 1-0